Cogmind - Beta 11.1 @@@ ROGUE MODE // 2022.04.23 @ 12:10:32 Player: Apotheos1s Result: Destroyed by as-02423 with Assembled Blade Performance ------------- Evolutions (0) 0 Regions Visited (2) 400 Robots Destroyed (32) 160 Value Destroyed (722) 722 Prototype IDs (4) 80 Alien Tech Used (0) 0 Bonus (50) 50 TOTAL SCORE: 1412 Bonus ------- High Alert Combat Kills 50 Cogmind --------- Core Integrity 0/250 Matter 6/300 Energy 101/125 System Corruption 0% Temperature Cool (0) Movement Walking (120) Location -10/Mines Parts ------- > --- POWER (1) -------- Light Ion Engine > --- PROPULSION (2) --- Improved Aluminum Leg Improved Aluminum Leg > --- UTILITY (2) ------ Large Storage Unit Weight Redist. System > --- WEAPON (2) ------- Plasma Cutter Plasma Cutter > --- INVENTORY (15) --- Light Ion Engine Improved Aluminum Leg Improved Aluminum Leg Large Storage Unit Weight Redist. System Transport Network Coupler Spread Laser Spread Laser Spread Laser Rocket Launcher Mini Grenade Launcher Mini Grenade Launcher Mini Grenade Launcher Peak State ------------ > --- POWER ------------ Ion Engine > --- PROPULSION ------- Improved Aluminum Leg Improved Aluminum Leg > --- UTILITY ---------- Large Storage Unit Weight Redist. System > --- WEAPON ----------- Mini Grenade Launcher Mini Grenade Launcher > --- INVENTORY -------- Light Ion Engine Improved Aluminum Leg Improved Aluminum Leg Large Storage Unit Weight Redist. System Transport Network Coupler Spread Laser Spread Laser Spread Laser Mini Grenade Launcher Plasma Cutter Plasma Cutter [Rating: 14] Favorites ----------- Power Ion Engine Engine Ion Engine Propulsion Light Treads Treads Light Treads Leg Improved Aluminum Leg Utility Large Storage Unit Device Weight Redist. System Storage Large Storage Unit Protection Light Armor Plating Weapon Mini Grenade Launcher Energy Gun Small Laser Launcher Mini Grenade Launcher Special Weapon Plasma Cutter Build | -11 -10 -10 ------- Run | Scr Mat Min Slots Evolved . | . . . Power . | . . . Propulsion . | . . . Utility . | . . . Weapon . | . . . Parts Attached 25 | 7 10 8 Power 3 | 2 . 1 Engine 3 | 2 . 1 Core . | . . . Reactor . | . . . Propulsion 5 | 2 . 3 Treads 2 | 2 . . Leg 3 | . . 3 Wheel . | . . . Hover . | . . . Flight . | . . . Utility 5 | 1 3 1 Device 2 | . 1 1 Storage 2 | 1 1 . Processor . | . . . Hackware . | . . . Protection 1 | . 1 . Artifact . | . . . Weapon 12 | 2 7 3 Energy Gun 4 | 2 2 . Energy Cannon . | . . . Ballistic Gun . | . . . Ballistic Cannon . | . . . Launcher 6 | . 5 1 Special Weapon 2 | . . 2 Impact Weapon . | . . . Slashing Weapon . | . . . Piercing Weapon . | . . . Special Melee Weapon . | . . . Unidentified Prototypes . | . . . Parts Lost 2 | . . 2 Power . | . . . Propulsion 1 | . . 1 Utility 1 | . . 1 Weapon . | . . . Highest Loss Streak 2 | . . 2 To Critical Strikes . | . . . Average Slot Usage (%) 94 | . 92 99 Engine 14 | . 14 14 Treads 23 | . 28 12 Leg 4 | . . 15 Device 6 | . 6 7 Storage 14 | . 14 14 Protection 2 | . . 6 Energy Gun 9 | . 12 . Launcher 18 | . 15 26 Naked Turns . | . . . Heaviest Build 31 | 12 31 30 Greatest Support 46 | 40 46 40 Greatest Overweight (x) 1 | . . 1 Average Overweight (x) . | . . . Largest Inventory Capacity 15 | 8 15 15 Average Capacity 14 | 7 14 15 Most Carried 15 | 5 15 15 Average Carried 9 | 2 9 13 Final Capacity 15 | 8 15 15 Final Carried 15 | 3 15 13 Class Distribution -------------------- 100% | Mutant Dominant Class ---------------- Mutant | -10/Materials Mutant | -10/Mines Resources | -11 -10 -10 ----------- Run | Scr Mat Min Matter Collected 596 | 265 239 92 Remotely . | . . . Salvage Created 620 | . 543 77 Parts 46 | . 37 9 Haulers Intercepted 2 | . 2 . Recyclers Shooed . | . . . Parts Field Recycled . | . . . Retrieved Matter . | . . . Parts Self-Destructed . | . . . Prevented . | . . . Kills | -11 -10 -10 ------- Run | Scr Mat Min Combat Hostiles Destroyed 32 | . 16 16 Guns 2 | . 2 . AOE 30 | . 14 16 Classes Destroyed 9 | . 6 3 Worker 3 | . 2 1 Builder 2 | . . 2 Hauler 2 | . 2 . Recycler 2 | . 1 1 Watcher 2 | . 2 . Swarmer 6 | . 3 3 Grunt 13 | . 13 . Demolisher 2 | . . 2 Assembled 11 | . . 11 Best Kill Streak 11 | . 7 11 Combat Bots Only 11 | . 6 11 Max Kills in Single Turn 5 | . 5 5 Gunslinging . | . . . Exploded 5 | . 4 5 Melee . | . . . Uniques/NPCs Destroyed . | . . . Combat | -11 -10 -10 -------- Run | Scr Mat Min Damage Taken 1107 | . 182 925 Core 256 | . 10 246 Absorbed by Shields . | . . . Core Remaining (%) 100 | 100 . . Volleys Fired 40 | . 27 13 Largest 2 | . 2 2 Hottest 80 | . 80 60 Shots Fired 79 | . 53 26 Gun 28 | . 28 . Cannon . | . . . Launcher 45 | . 25 20 Special 6 | . . 6 Kinetic . | . . . Thermal 34 | . 28 6 Explosive 45 | . 25 20 Electromagnetic . | . . . Robot Hit Streak 11 | . 11 3 Robot Miss Streak 3 | . 2 3 Penetration Max . | . . . Secondary Targets . | . . . Shots Hit Robots 29 | . 17 12 Core Hits 80 | . 39 41 Critical Kills . | . . . Critical Parts Destroyed . | . . . Critical Strikes . | . . . Melee Attacks . | . . . Impact . | . . . Slashing . | . . . Piercing . | . . . Sneak Attacks . | . . . Combat Hostiles . | . . . Follow-up Attacks . | . . . Damage Inflicted 2622 | . 1288 1334 Guns 166 | . 166 . Cannons . | . . . Explosions 2424 | . 1122 1302 Melee . | . . . Ramming . | . . . Kinetic . | . . . Thermal 198 | . 166 32 Explosive 2424 | . 1122 1302 Electromagnetic . | . . . Impact . | . . . Slashing . | . . . Piercing . | . . . Highest Corruption . | . . . Average Corruption . | . . . Corruption Purged . | . . . Corruption Blocked . | . . . Overload Shots . | . . . Overflow Damage 47 | . 1 46 Projectiles . | . . . Explosions 47 | . 1 46 Melee . | . . . Knockbacks . | . . . Impact . | . . . Kinetic . | . . . Secondary . | . . . Self-Inflicted Damage 118 | . . 118 Shots 4 | . . 4 Rammed . | . . . Targets Rammed . | . . . Kicked . | . . . Crushed . | . . . Highest Temperature 80 | . 80 36 Average Temperature 24 | . 26 16 Received Heat Transfer 93 | . 93 . Siege Activations . | . . . Robots Corrupted . | . . . Combat Hostiles . | . . . Parts Fried . | . . . Impact Corruptions . | . . . Robots Melted . | . . . Combat Hostiles . | . . . Parts Melted 1 | . 1 . Heat Transferred 486 | . 375 111 Parts Sabotaged . | . . . Parts Stolen . | . . . Parts Stripped . | . . . Power Chain Reactions . | . . . Missiles Intercepted . | . . . Alert | -11 -10 -10 ------- Run | Scr Mat Min Peak Influence 562 | . 562 490 Initial 165 | . . 165 Average 266 | . 281 297 Maximum Alert Level 2 | . 2 2 Low Security (%) 43 | 100 40 36 Level 1 22 | . 17 39 Level 2 34 | . 42 23 Level 3 . | . . . Level 4 . | . . . Level 5 . | . . . High Security . | . . . Max Security . | . . . Squads Dispatched 5 | . 5 . Investigation 3 | . 3 . Extermination . | . . . Reinforcement 2 | . 2 . Assault . | . . . Garrison . | . . . Intercept . | . . . Searches Triggered . | . . . Construction Impeded . | . . . Haulers Reinforced . | . . . Active Scanning Responses . | . . . Cargo Convoy Interrupts . | . . . Stealth | -11 -10 -10 --------- Run | Scr Mat Min Distress Signals 1 | . 1 . Communications Jammed . | . . . Distress Signals . | . . . Times Spotted 46 | . 24 22 Peak Tracking Total 12 | . 3 12 Tactical Retreats . | . . . Traps | -11 -10 -10 ------- Run | Scr Mat Min Traps Triggered 2 | . 2 . Indirectly . | . . . Trap Hack Attempts . | . . . Triggered . | . . . Disarmed . | . . . Reprogrammed . | . . . Reused . | . . . Traps Extracted . | . . . Installed . | . . . Triggered . | . . . Machines | -11 -10 -10 ---------- Run | Scr Mat Min Machines Disabled 4 | . 4 . Max in Single Turn 2 | . 2 . Machines Sabotaged . | . . . Garrisons Compromised . | . . . Overloaded Fab Kills . | . . . Hacking | -11 -10 -10 --------- Run | Scr Mat Min Machines Accessed 4 | . 4 . Terminals 3 | . 3 . Fabricators . | . . . Repair Stations . | . . . Recycling Units 1 | . 1 . Scanalyzers . | . . . Garrison Access . | . . . Total Hacks 11 | . 11 . Successful 3 | . 3 . Failed 8 | . 8 . Catastrophic . | . . . Database Lockouts . | . . . Manual . | . . . Terminals 10 | . 10 . Fabricators . | . . . Repair Stations . | . . . Recycling Units 1 | . 1 . Scanalyzers . | . . . Garrison Access . | . . . Terminal Hacks 2 | . 2 . Prototype ID Bank 2 | . 2 . Fabricator Hacks . | . . . Repair Station Hacks . | . . . Recycling Unit Hacks 1 | . 1 . Report Inventory 1 | . 1 . Scanalyzer . | . . . Garrison Access Hacks . | . . . Unauthorized Hacks . | . . . Terminals . | . . . Fabricators . | . . . Repair Stations . | . . . Recycling Units . | . . . Scanalyzers . | . . . Garrison Access . | . . . Data Cores Recovered . | . . . Used . | . . . Hacking Detections 4 | . 4 . Full Trace Events 2 | . 2 . Feedback Events . | . . . Feedback Blocked . | . . . Robot Schematics Acquired . | . . . Robots Built . | . . . Authchips . | . . . Time . | . . . Total Robot Build Rating . | . . . Part Schematics Acquired . | . . . Parts Built . | . . . Authchips . | . . . Time . | . . . Total Part Build Rating . | . . . Parts Repaired . | . . . Time . | . . . Parts Recycled . | . . . Recycled Matter . | . . . Retrieved Matter . | . . . Retrieved Components . | . . . Parts Scanalyzed . | . . . Part Schematics Acquired . | . . . Parts Damaged . | . . . Bothacking | -11 -10 -10 ------------ Run | Scr Mat Min Used RIF Installer . | . . . Robots Hacked . | . . . Non-combat . | . . . Combat . | . . . Robot Hacks Applied . | . . . Relay Couplers Released . | . . . Fabnet Peak Effective % . | . . . Robots Rewired . | . . . Allies Hacked . | . . . Hacks Repelled . | . . . Allies | -11 -10 -10 -------- Run | Scr Mat Min Total Allies 1 | . . 1 Largest Group 1 | . . 1 Highest-Rated Group 31 | . . 31 Highest-Rated Ally 31 | . . 31 Total Orders . | . . . Ally Attacks 5 | . . 5 Total Damage 64 | . . 64 Kills 2 | . . 2 Allies Corrupted . | . . . Allies Melted . | . . . Intel | -11 -10 -10 ------- Run | Scr Mat Min Robot Analysis Total . | . . . Derelict Logs Recovered 1 | . . 1 Drone Launches . | . . . Drone Recoveries . | . . . Exploration | -11 -10 -10 ------------- Run | Scr Mat Min Turns Passed 1822 | 124 1201 497 Spaces Moved 967 | 61 644 262 Core 14 | 14 . . Treads 818 | 47 644 127 Legs 135 | . . 135 Wheels . | . . . Hover . | . . . Flight . | . . . Fastest Speed 50 | 50 160 120 Average Speed 153 | 134 160 141 Slowest Speed 240 | 160 160 240 Overloaded Moves . | . . . Propulsion Burnouts . | . . . Robots Hopped . | . . . Cave-ins Triggered . | . . . Exploration Rate (%) 36 | 4 61 45 Regions Visited 2 Branch Regions 1 Pre-discovered Areas . | . . . Known Exits Taken . | . . . Unknown Exits Taken 2 | 1 1 . Scrap Searched 1 | . . 1 Spaces Dug 13 | . 13 . Terrain Destroyed 220 | . 110 110 Melee . | . . . Projectile . | . . . AOE 220 | . 110 110 Terrain Rammed . | . . . Walls Destroyed . | . . . Machines Disabled . | . . . Actions | -11 -10 -10 --------- Run | Scr Mat Min Total 1226 | 103 767 356 Wait 146 | 25 52 69 Move 965 | 60 643 262 Hop . | . . . Pick Up 36 | 10 24 2 Fast Attach . | . . . Attach 11 | 6 3 2 Detach . | . . . Swap 14 | 1 7 6 Drop 14 | 1 11 2 Fire 40 | . 27 13 Melee . | . . . Ram . | . . . Kick . | . . . Crush . | . . . Escape Stasis . | . . . Rewire . | . . . Trap . | . . . Miscellaneous . | . . . Route ------- -11/Scrapyard -10/Materials (discovered 2 exits: [*Min x2]) -10/Mines History --------- Turn | Location | Event 11 | -11/Scrapyard | Discovered new exit (range 15) 125 | -11/Scrapyard | Entered Materials 304 | -10/Materials | Build established: Mutant 1038 | -10/Materials | Discovered new exit (range 11) 1297 | -10/Materials | Discovered new exit (range 8) 1326 | -10/Materials | Entered Mines 1392 | -10/Mines | Received a Mining Laser from a helpful Derelict 1490 | -10/Mines | Assembled infested the area 1538 | -10/Mines | Destroyed 11 combat bots 1552 | -10/Mines | Core integrity fell below 50% 1618 | -10/Mines | Received a Rocket Launcher from a helpful Derelict 1817 | -10/Mines | Core integrity fell below 20% 1823 | -10/Mines | Destroyed by as-02423 with Assembled Blade Last Messages --------------- were you, so I'm going to lend you mine." 01618_ LB-QM5(g) slips back into the shadows. 01619_ U-05 Engineer lays Concrete. 01620_ U-05 Engineer builds a Wall. 01621_ Acquired Rocket Launcher. 01622_ Acquired 4 matter. 01625_ U-05 Engineer lays Concrete. 01627_ R-06 Scavenger collects Lgt. Ion Engine. 01630_ U-05 Engineer lays Concrete. 01631_ The unstable cave ceiling collapses. 01631_ U-05 Engineer lays Concrete. 01631_ R-06 Scavenger collects Lgt. Ion Engine. 01632_ U-05 Engineer lays Concrete. 01634_ R-06 Scavenger collects Lgt. Assault Rifle. 01635_ U-05 Engineer lays Concrete. 01649_ U-05 Engineer builds a Wall. 01653_ U-05 Engineer lays Concrete. 01777_ K-01 Serf collects debris. 01796_ Acquired 24 matter. 01823_ U-05 Engineer builds a Wall. Map ----- +----------------------------------------------------+ | ?????????????????????????????????????????????????? | | ??????###?????????????????????????????????????#### | | ?????? ?????????????????????????????????????# # | | ?????? ?????????????????????????????????????# | | ?????? ????????????????????????????????????## | | ?????? ?????????????????????????????????#### # | | ##???? ????????????????????????????????## ## | | ##??? ????????????????????????????????# ## | | #???# #????????????????????????????????# | | | #???# #????????????????????????????????## ### | | ##???# #?????????????????????????????????######?? | | #????# #????????????????????????????????????????? | | ###### ######???????????????????????????????????# | | ## #???????????????????????????????????# | | ######## #???????????????????????????????????# | | #??????# #???????????????????????????????????# | | #??????# #??????????????????????????????????## | | #??????# #???????????????????????????????????# | | ##?????## ##??????????????????????????????????## | | ???????# #???????????????????????????????????# | | ??????## ##?????????###??????????????????????# | | #####?# ############ ###????????????????????## | | ### u !## ##????????????????????## | | ### ## r = #?????????????????????# | | ??# # ########= #??????????????????#### | | ??# ### ##????##### @##?????????????????## # | | ??# ## #???????## a###????????????###### | | ??# #??????## u# ##?????####?## | | ??#### #?????### # ##???## ### ### | | ????### #?????# # # #??## ##?## | | ??????## ##?????# # ##### #???? | | ???????######??????# # ##### ##??? | | ???????????????????# # #???# ##?? | | ??????????????? # ###### ### | | ????????????? ! #?## | | ??????????? ! ### | | ??????????? ## # ! ! ### | | ???????????? #?#### *% ### | | ???????????# ?????# # # # #??### | | ???????????# ?????### # #????? | | ??????????? #??????## #???? | | ???????????? #????????#### # # #???? | | ????????????## #?????????????##?# #???? | | ??????????????# #?????????????????# ??? | | ???????????????????????????????????## #? | | ????????????????????????????????????## # # #? | | ?????????????????????????????????????# # ##? | | ?????????????????????????????????????## #?? | | ???????????????????????????????????????# %% #?? | | ??????????????????????????????????????? ##?? | +----------------------------------------------------+ Best States ------------- Heat Dissipation 25 Energy Generation 10 Energy Capacity 250 Matter Stores 295 Matter Capacity 300 Sight Range 16 Terrain Scan Density 10 Additional Mass Support 6 Armor Coverage 150 Evasion (%) 55 Recoil Reduction 2 Item Schematics ----------------- None Robot Schematics ------------------ None Fabricated ------------ Nothing Alien Tech Used ----------------- None Achievements -------------- Quick And Dirty Remodeling Challenges ------------ None Game ------ Seed MinesnifferShieldSaw Manual? 0 Play Time 00:14:22 Cumulative 5.3 hours Start 2022.04.23 @ 11:57:36 End 2022.04.23 @ 12:10:32 Sessions 1 Manual Loads 0 Difficulty Rogue Special Mode None Game No. 9 Rogue 9 Adventurer 0 Explorer 0 Win Type - Total 0 Types 0/0/0/0/0/0/0/0/0 Lore% 18 Gallery% 11 Achievement% 17 Wizard Run 0 Options --------- ASCII 0 Keyboard 0 Movement Numpad Keybinds 0 Fullscreen 2 Font 18/SmallcapsGlow Map View 76x50 Tactical HUD 1 Map Filters NONE Filters NONE Steam 1 RUN: afe7255b-b927-4199-ac59-a1bb29522141